fUSD/lending_fUSD_20250916
["ID","MTS","AMOUNT","RATE_DAILY","PERIOD"]
[385786936,1758040255948,-400.0,0.00030136,6]
[385786937,1758040255960,-400.0,0.00030136,6]
[385786938,1758040255971,-400.0,0.00030136,6]
[385786939,1758040255981,-1033.1,0.00030136,6]
[385786940,1758040255990,-400.0,0.00030136,6]
[385786941,1758040256002,-400.0,0.00030136,6]
[385786942,1758040256012,-448.27,0.00030136,6]
[385786943,1758040256024,-2877.69,0.00030136,6]
[385786944,1758040256034,-400.0,0.00030136,6]
[385786945,1758040256044,-400.0,0.00030136,6]
[385786946,1758040256054,-400.0,0.00030136,6]
[385786947,1758040256064,-400.60897545,0.00030136,6]
[385786948,1758040256073,-400.0,0.00030136,6]
[385786949,1758040256083,-400.0,0.00030136,6]
[385786950,1758040256093,-400.0,0.00030136,6]
[385786951,1758040256102,-706.52,0.00030136,6]
[385786952,1758040256112,-684.67,0.00030136,6]
[385786953,1758040256122,-400.0,0.00030136,6]
[385786954,1758040256131,-455.38,0.00030136,6]
[385786955,1758040256141,-400.0,0.00030136,6]
[385786956,1758040256151,-400.0,0.00030136,6]
[385786957,1758040256161,-539.24,0.00030136,6]
[385786958,1758040256171,-584.78,0.00030136,6]
[385786959,1758040256183,-1014.68,0.00030136,6]
[385786960,1758040256194,-400.0,0.00030136,6]
[385786961,1758040256204,-807.95,0.00030136,6]
[385786962,1758040256215,-675.83,0.00030136,6]
[385786963,1758040256224,-722.09,0.00030136,6]
[385786964,1758040256234,-400.0,0.00030136,6]
[385786965,1758040256245,-400.0,0.00030136,6]
[385786966,1758040256256,-400.0,0.00030136,6]
[385786967,1758040256266,-400.0,0.00030136,6]
[385786968,1758040256277,-1170.07,0.00030136,6]
[385786969,1758040256287,-400.0,0.00030136,6]
[385786970,1758040256297,-400.0,0.00030136,6]
[385786971,1758040256307,-576.76,0.00030136,6]
[385786972,1758040256319,-400.86241152,0.00030136,6]
[385786973,1758040256329,-534.27,0.00030136,6]
[385786974,1758040256338,-400.0,0.00030136,6]
[385786975,1758040256348,-400.0,0.00030136,6]
[385786976,1758040256358,-400.0,0.00030136,6]
[385786977,1758040256369,-400.0,0.00030136,6]
[385786978,1758040256379,-730.26,0.00030136,6]
[385786979,1758040256390,-151.0,0.00030136,7]
[385786980,1758040256400,-400.0,0.00030136,6]
[385786981,1758040256412,-964.86,0.00030136,6]
[385786982,1758040256422,-718.96,0.00030136,6]
[385786983,1758040256434,-400.0,0.00030136,6]
[385786984,1758040256444,-400.0,0.00030136,6]
[385786985,1758040256454,-400.0,0.00030136,6]
[385786986,1758040256465,-400.0,0.00030136,6]
[385786987,1758040256475,-400.0,0.00030136,6]
[385786988,1758040256484,-400.0,0.00030136,6]
[385786989,1758040256495,-400.0,0.00030136,6]
[385786990,1758040256507,-400.0,0.00030136,6]
[385786991,1758040256518,-400.0,0.00030136,6]
[385786992,1758040256528,-823.77,0.00030136,6]
[385786993,1758040256538,-547.4,0.00030136,6]
[385786994,1758040256549,-400.0,0.00030136,6]
[385786995,1758040256559,-400.0,0.00030136,6]
[385786996,1758040256569,-548.1,0.00030136,6]
[385786997,1758040256580,-400.0,0.00030136,6]
[385786998,1758040256590,-157.52665324,0.00030136,6]
[385786999,1758040256600,-884.72,0.00030136,6]
[385787000,1758040256611,-603.05,0.00030136,6]
[385787001,1758040256621,-402.55848499,0.00030136,6]
[385787002,1758040256631,-151.0,0.00030136,7]
[385787003,1758040256641,-151.0,0.00030136,7]
[385787004,1758040256651,-400.0,0.00030136,6]
[385787005,1758040256661,-565.99,0.00030136,6]
[385787006,1758040256671,-543.46,0.00030136,6]
[385787007,1758040256681,-400.0,0.00030136,6]
[385787008,1758040256691,-400.0,0.00030136,6]
[385787009,1758040256700,-848.88,0.00030136,6]
[385787010,1758040256710,-400.0,0.00030136,6]
[385787011,1758040256720,-400.0,0.00030136,6]
[385787012,1758040256730,-400.0,0.00030136,6]
[385787013,1758040256740,-1423.9,0.00030136,6]
[385787014,1758040256750,-609.5,0.00030136,6]
[385787015,1758040256761,-822.19,0.00030136,6]
[385787016,1758040256771,-400.62802612,0.00030136,6]
[385787017,1758040256781,-400.0,0.00030136,6]
[385787018,1758040256790,-3440.26,0.00030136,6]
[385787019,1758040256801,-191.7432,0.00030136,7]
[385787020,1758040256810,-191.7432,0.00030136,7]
[385787021,1758040256821,-400.0,0.00030136,6]
[385787022,1758040256831,-530.06,0.00030136,6]
[385787023,1758040256841,-400.0,0.00030136,6]
[385787024,1758040256851,-191.7432,0.00030136,7]
[385787025,1758040256863,-191.7432,0.00030136,7]
[385787026,1758040256873,-400.0,0.00030136,6]
[385787027,1758040256884,-400.0,0.00030136,6]
[385787028,1758040256894,-191.7432,0.00030136,7]
[385787029,1758040256904,-191.7432,0.00030136,7]
[385787030,1758040256914,-400.0,0.00030136,6]
[385787031,1758040256923,-400.0,0.00030136,6]
[385787032,1758040256933,-1587.92,0.00030136,6]
[385787033,1758040256943,-191.7432,0.00030136,7]
[385787034,1758040256954,-191.743198,0.00030136,7]
[385787035,1758040256965,-904.58,0.00030136,6]
[385787036,1758040256975,-590.46,0.00030136,6]
[385787037,1758040256985,-400.0,0.00030136,6]
[385787038,1758040256994,-1194.131204,0.00030136,6]
[385787039,1758040257005,-400.0,0.00030136,6]
[385787040,1758040257015,-400.0,0.00030136,6]
[385787041,1758040257025,-165.508393,0.00030136,6]
[385787042,1758040257035,-596.69,0.00030136,6]
[385787043,1758040257045,-400.0,0.00030136,6]
[385787044,1758040257054,-400.0,0.00030136,6]
[385787045,1758040257064,-169.697227,0.00030136,6]
[385787046,1758040257074,-400.0,0.00030136,6]
[385787047,1758040257084,-400.0,0.00030136,6]
[385787048,1758040257094,-554.67,0.00030136,6]
[385787049,1758040257103,-1171.37,0.00030136,6]
[385787050,1758040257114,-577.406859,0.00030136,6]
[385787051,1758040257125,-183.613465,0.00030136,6]
[385787052,1758040257135,-400.0,0.00030136,6]
[385787053,1758040257145,-400.0,0.00030136,6]
[385787054,1758040257155,-400.0,0.00030136,6]
[385787055,1758040257166,-400.0,0.00030136,6]
[385787056,1758040257425,-912.529448,0.00030136,6]
[385787057,1758040257443,-400.0,0.00030136,6]
[385787058,1758040257453,-500.0,0.00030136,6]
[385787059,1758040257464,-713.59,0.00030136,6]
[385787060,1758040257474,-500.0,0.00030136,6]
[385787061,1758040257483,-727.17,0.00030136,6]
[385787062,1758040257493,-500.0,0.00030136,6]
[385787063,1758040257502,-500.0,0.00030136,6]
[385787064,1758040257517,-705.0,0.00030136,6]
[385787065,1758040257527,-500.0,0.00030136,6]
[385787066,1758040257538,-645.91,0.00030136,6]
[385787067,1758040257548,-500.0,0.00030136,6]
[385787068,1758040257559,-500.0,0.00030136,6]
[385787069,1758040257569,-400.0,0.00030136,6]
[385787070,1758040257579,-400.27294654,0.00030136,6]
[385787071,1758040257589,-400.0,0.00030136,6]
[385787072,1758040257599,-400.0,0.00030136,6]
[385787073,1758040257608,-500.0,0.00030136,6]
[385787074,1758040257618,-1222.47,0.00030136,6]
[385787075,1758040257628,-1004.91,0.00030136,6]
[385787076,1758040257638,-500.0,0.00030136,6]
[385787077,1758040257648,-1042.33,0.00030136,6]
[385787078,1758040257658,-1694.97,0.00030136,6]
[385787079,1758040257669,-1243.64,0.00030136,6]
[385787080,1758040257680,-400.0,0.00030136,6]
[385787081,1758040257691,-2753.22,0.00030136,6]
[385787082,1758040257700,-400.0,0.00030136,6]
[385787083,1758040257711,-400.0,0.00030136,6]
[385787084,1758040257721,-400.0,0.00030136,6]
[385787085,1758040257731,-613.17,0.00030136,6]
[385787086,1758040257742,-400.0,0.00030136,6]
[385787087,1758040257752,-400.0,0.00030136,6]
[385787088,1758040257762,-1427.78,0.00030136,6]
[385787089,1758040257772,-401.15115852,0.00030136,6]
[385787090,1758040257782,-607.73,0.00030136,6]
[385787091,1758040257791,-400.72551005,0.00030136,6]
[385787092,1758040257801,-608.11,0.00030136,6]
[385787093,1758040257811,-975.6,0.00030136,6]
[385787094,1758040257820,-400.0,0.00030136,6]
[385787095,1758040257830,-1442.11,0.00030136,6]
[385787096,1758040257839,-400.0,0.00030136,6]
[385787097,1758040257849,-400.0,0.00030136,6]
[385787098,1758040257859,-400.0,0.00030136,6]
[385787099,1758040257869,-468.95,0.00030136,6]
[385787100,1758040257879,-400.0,0.00030136,6]
[385787101,1758040257889,-444.61,0.00030136,6]
[385787102,1758040257901,-400.0,0.00030136,6]
[385787103,1758040257911,-577.79,0.00030136,6]
[385787104,1758040257920,-400.0,0.00030136,6]
[385787105,1758040257931,-400.0,0.00030136,6]
[385787106,1758040257941,-927.6,0.00030136,6]
[385787107,1758040257953,-400.0,0.00030136,6]
[385787108,1758040257964,-400.0,0.00030136,6]
[385787109,1758040257974,-511.39,0.00030136,6]
[385787110,1758040257984,-691.4,0.00030136,6]
[385787111,1758040257995,-400.0,0.00030136,6]
[385787112,1758040258005,-797.56,0.00030136,2]
[385787113,1758040258015,-797.56,0.00030136,2]
[385787114,1758040258026,-797.56,0.00030136,2]
[385787115,1758040258037,-797.56,0.00030136,2]
[385787116,1758040258047,-527.66,0.00030136,6]
[385787117,1758040258057,-797.56,0.00030136,2]
[385787118,1758040258067,-797.56,0.00030136,2]
[385787119,1758040258077,-797.56,0.00030136,2]
[385787120,1758040258088,-797.56,0.00030136,2]
[385787121,1758040258099,-797.56,0.00030136,2]
[385787122,1758040258109,-488.3,0.00030136,6]
[385787123,1758040258120,-400.0,0.00030136,6]
[385787124,1758040258132,-491.32,0.00030136,6]
[385787125,1758040258143,-651.34,0.00030136,6]
[385787126,1758040258154,-400.0,0.00030136,6]
[385787127,1758040258164,-400.0,0.00030136,6]
[385787128,1758040258174,-400.0,0.00030136,6]
[385787129,1758040258186,-400.0,0.00030136,6]
[385787130,1758040258196,-400.88524202,0.00030136,6]
[385787131,1758040258206,-400.0,0.00030136,6]
[385787132,1758040258216,-441.56,0.00030136,6]
[385787133,1758040258225,-400.0,0.00030136,6]
[385787134,1758040258235,-400.0,0.00030136,6]
[385787135,1758040258244,-571.13,0.00030136,6]
[385787136,1758040258253,-586.9,0.00030136,6]
[385787137,1758040258263,-400.0,0.00030136,6]
[385787138,1758040258272,-400.0,0.00030136,6]
[385787139,1758040258282,-1316.82,0.00030136,6]
[385787140,1758040258291,-400.0,0.00030136,6]
[385787141,1758040258303,-400.0,0.00030136,6]
[385787142,1758040258312,-400.0,0.00030136,6]
[385787143,1758040258323,-400.0,0.00030136,6]
[385787144,1758040258335,-1016.08,0.00030136,6]
[385787145,1758040258344,-590.37,0.00030136,6]
[385787146,1758040258353,-400.0,0.00030136,6]
[385787147,1758040258363,-403.39045703,0.00030136,6]
[385787148,1758040258374,-500.0,0.00030136,2]
[385787149,1758040258385,-696.9,0.00030136,6]
[385787150,1758040258395,-649.16,0.00030136,6]
[385787151,1758040258405,-666.43,0.00030136,6]
[385787152,1758040258415,-956.24,0.00030136,6]
[385787153,1758040258424,-400.0,0.00030136,6]
[385787154,1758040258433,-542.41,0.00030136,6]
[385787155,1758040258443,-542.41,0.00030136,6]
[385787156,1758040258452,-542.41,0.00030136,6]
[385787157,1758040258461,-1060.94,0.00030136,6]
[385787158,1758040258473,-400.0,0.00030136,6]
[385787159,1758040258483,-542.41,0.00030136,6]
[385787160,1758040258492,-400.0,0.00030136,6]
[385787161,1758040258502,-542.41,0.00030136,6]
[385787162,1758040258511,-846.41,0.00030136,6]
[385787163,1758040258520,-400.0,0.00030136,6]
[385787164,1758040258530,-542.41,0.00030136,6]
[385787165,1758040258539,-2944.79,0.00030136,6]
[385787166,1758040258549,-542.41,0.00030136,6]
[385787167,1758040258558,-473.32,0.00030136,6]
[385787168,1758040258568,-400.0,0.00030136,6]
[385787169,1758040258578,-500.05,0.00030136,6]
[385787170,1758040258587,-542.41,0.00030136,6]
[385787171,1758040258597,-542.41,0.00030136,6]
[385787172,1758040258606,-496.4,0.00030136,6]
[385787173,1758040258616,-400.0,0.00030136,6]
[385787174,1758040258626,-799.56,0.00030136,6]
[385787175,1758040258635,-422.82,0.00030136,6]
[385787176,1758040258644,-400.0,0.00030136,6]
[385787177,1758040258654,-400.0,0.00030136,6]
[385787178,1758040258664,-1169.89,0.00030136,6]
[385787179,1758040258674,-993.34,0.00030136,6]
[385787180,1758040258683,-400.0,0.00030136,6]
[385787181,1758040258693,-400.0,0.00030136,6]
[385787182,1758040258703,-400.0,0.00030136,6]
[385787183,1758040258712,-500.0,0.00030136,6]
[385787184,1758040258724,-400.0,0.00030136,6]
[385787185,1758040258734,-688.92,0.00030136,6]
[385787186,1758040258743,-1044.0,0.00030136,6]
[385787187,1758040258754,-2694.6,0.00030136,6]
[385787188,1758040258764,-400.0,0.00030136,6]
[385787189,1758040258773,-400.0,0.00030136,6]
[385787190,1758040258784,-652.78,0.00030136,6]
[385787191,1758040258793,-400.0,0.00030136,6]
[385787192,1758040258802,-400.0,0.00030136,6]
[385787193,1758040258812,-400.0,0.00030136,6]
[385787194,1758040258821,-537.68,0.00030136,6]
[385787195,1758040258832,-400.0,0.00030136,6]
[385787196,1758040258841,-400.0,0.00030136,6]
[385787197,1758040258851,-609.37,0.00030136,6]
[385787198,1758040258860,-926.17,0.00030136,6]
[385787199,1758040258870,-456.25,0.00030136,6]
[385787200,1758040258879,-400.0,0.00030136,6]
[385787201,1758040258889,-2888.7,0.00030136,6]
[385787202,1758040258898,-1079.63,0.00030136,6]
[385787203,1758040258907,-400.0,0.00030136,6]
[385787204,1758040258917,-400.0,0.00030136,6]
[385787205,1758040258926,-400.0,0.00030136,6]
[385787206,1758040258936,-400.0,0.00030136,6]
[385787207,1758040258945,-400.0,0.00030136,6]
[385787208,1758040258958,-400.0,0.00030136,6]
[385787209,1758040258968,-400.0,0.00030136,6]
[385787210,1758040258978,-501.97,0.00030136,6]
[385787211,1758040258988,-400.0,0.00030136,6]
[385787212,1758040258998,-400.0,0.00030136,6]
[385787213,1758040259008,-414.13,0.00030136,6]
[385787214,1758040259017,-400.0,0.00030136,6]
[385787215,1758040259027,-400.0,0.00030136,6]
[385787216,1758040259037,-1208.94,0.00030136,6]
[385787217,1758040259047,-400.0,0.00030136,6]
[385787218,1758040259056,-400.0,0.00030136,6]
[385787219,1758040259066,-761.01,0.00030136,6]
[385787220,1758040259075,-400.0,0.00030136,6]
[385787221,1758040259085,-400.0,0.00030136,6]
[385787222,1758040259095,-914.47,0.00030136,6]
[385787223,1758040259105,-400.0,0.00030136,6]
[385787224,1758040259115,-400.0,0.00030136,6]
[385787225,1758040259124,-400.0,0.00030136,6]
[385787226,1758040259133,-647.38,0.00030136,6]
[385787227,1758040259142,-400.0,0.00030136,6]
[385787228,1758040259151,-410.20645907,0.00030136,6]
[385787229,1758040259161,-400.0,0.00030136,6]
[385787230,1758040259171,-403.47,0.00030136,6]
[385787231,1758040259180,-400.0,0.00030136,6]
[385787232,1758040259189,-654.19,0.00030136,6]
[385787233,1758040259198,-400.0,0.00030136,6]
[385787234,1758040259208,-1292.99,0.00030136,6]
[385787235,1758040259218,-701.74,0.00030136,6]
[385787236,1758040259228,-400.0,0.00030136,6]
[385787237,1758040259238,-896.53,0.00030136,6]
[385787238,1758040259248,-401.40849599,0.00030136,6]
[385787239,1758040259259,-400.0,0.00030136,6]
[385787240,1758040259269,-500.0,0.00030136,6]
[385787241,1758040259278,-500.0,0.00030136,6]
[385787242,1758040259289,-500.0,0.00030136,6]
[385787243,1758040259299,-400.0,0.00030136,6]
[385787244,1758040259309,-583.78,0.00030136,6]
[385787245,1758040259319,-400.0,0.00030136,6]
[385787246,1758040259328,-500.0,0.00030136,6]
[385787247,1758040259337,-500.0,0.00030136,6]
[385787248,1758040259347,-500.0,0.00030136,6]
[385787249,1758040259356,-721.57,0.00030136,6]
[385787250,1758040259365,-500.0,0.00030136,6]
[385787251,1758040259374,-400.0,0.00030136,6]
[385787252,1758040259383,-500.0,0.00030136,6]
[385787253,1758040259393,-400.0,0.00030136,6]
[385787254,1758040259402,-414.67101968,0.00030136,6]
[385787255,1758040259411,-573.83,0.00030136,6]
[385787256,1758040259421,-750.89,0.00030136,6]
[385787257,1758040259432,-517.72,0.00030136,6]
[385787258,1758040259442,-400.0,0.00030136,6]
[385787259,1758040259452,-400.0,0.00030136,6]
[385787260,1758040259463,-829.33,0.00030136,6]
[385787261,1758040259474,-400.0,0.00030136,6]
[385787262,1758040259483,-400.0,0.00030136,6]
[385787263,1758040259492,-400.76428183,0.00030136,6]
[385787264,1758040259502,-400.0,0.00030136,6]
[385787265,1758040259512,-1174.23,0.00030136,6]
[385787266,1758040259521,-400.0,0.00030136,6]
[385787267,1758040259531,-400.0,0.00030136,2]
[385787268,1758040259540,-711.97,0.00030136,6]
[385787269,1758040259549,-400.0,0.00030136,6]
[385787270,1758040259558,-400.0,0.00030136,6]
[385787271,1758040259568,-400.0,0.00030136,6]
[385787272,1758040259577,-400.0,0.00030136,6]
[385787273,1758040259587,-400.0,0.00030136,6]
[385787274,1758040259597,-400.0,0.00030136,6]
[385787275,1758040259607,-413.54,0.00030136,6]
[385787276,1758040259616,-774.53,0.00030136,6]
[385787277,1758040259625,-400.0,0.00030136,6]
[385787278,1758040259635,-486.14,0.00030136,6]
[385787279,1758040259644,-537.16,0.00030136,6]
[385787280,1758040259653,-401.68,0.00030136,6]
[385787281,1758040259663,-400.0,0.00030136,6]
[385787282,1758040259673,-743.95,0.00030136,6]
[385787283,1758040259683,-695.28,0.00030136,6]
[385787284,1758040259695,-1144.44,0.00030136,6]
[385787285,1758040259705,-400.0,0.00030136,6]
[385787286,1758040259716,-400.0,0.00030136,6]
[385787287,1758040259726,-400.0,0.00030136,6]
[385787288,1758040259735,-593.09,0.00030136,6]
[385787289,1758040259744,-400.0,0.00030136,6]
[385787290,1758040259754,-840.17,0.00030136,6]
[385787291,1758040259764,-400.0,0.00030136,6]
[385787292,1758040259776,-593.62,0.00030136,6]
[385787293,1758040259786,-400.0,0.00030136,6]
[385787294,1758040259897,-400.0,0.00030136,6]
[385787295,1758040259907,-1251.31,0.00030136,6]
[385787296,1758040259916,-4196.7,0.00030136,6]
[385787297,1758040259925,-400.0,0.00030136,6]
[385787298,1758040259934,-400.0,0.00030136,6]
[385787299,1758040259944,-400.0,0.00030136,6]
[385787300,1758040259956,-516.15,0.00030136,6]
[385787301,1758040259965,-5070.54,0.00030136,6]
[385787302,1758040259974,-1037.48,0.00030136,6]
[385787303,1758040259983,-400.0,0.00030136,6]
[385787304,1758040259992,-400.0,0.00030136,6]
[385787305,1758040260002,-400.67281312,0.00030136,6]
[385787306,1758040260011,-400.0,0.00030136,6]
[385787307,1758040260022,-400.0,0.00030136,6]
[385787308,1758040260035,-401.26666433,0.00030136,6]
[385787309,1758040260044,-400.0,0.00030136,6]
[385787310,1758040260053,-740.36,0.00030136,6]
[385787311,1758040260063,-400.0,0.00030136,6]
[385787312,1758040260072,-1021.0,0.00030136,6]
[385787313,1758040260082,-400.0,0.00030136,6]
[385787314,1758040260091,-400.0,0.00030136,6]
[385787315,1758040260100,-400.0,0.00030136,6]
[385787316,1758040260109,-400.0,0.00030136,6]
[385787317,1758040260119,-1207.54,0.00030136,6]
[385787318,1758040260128,-400.0,0.00030136,6]
[385787319,1758040260137,-805.25,0.00030136,6]
[385787320,1758040260146,-4455.49,0.00030136,6]
[385787321,1758040260155,-400.0,0.00030136,6]
[385787322,1758040260164,-400.0,0.00030136,6]
[385787323,1758040260174,-400.0,0.00030136,6]
[385787324,1758040260183,-400.0,0.00030136,6]
[385787325,1758040260191,-400.0,0.00030136,6]
[385787326,1758040260201,-521.84,0.00030136,6]
[385787327,1758040260210,-400.0,0.00030136,6]
[385787328,1758040260220,-473.38,0.00030136,6]
[385787329,1758040260229,-400.0,0.00030136,6]
[385787330,1758040260238,-400.0,0.00030136,6]
[385787331,1758040260247,-500.0,0.00030136,6]
[385787332,1758040260258,-500.0,0.00030136,6]
[385787333,1758040260267,-460.83,0.00030136,6]
[385787334,1758040260277,-769.3,0.00030136,6]
[385787335,1758040260286,-500.0,0.00030136,6]
[385787336,1758040260296,-500.0,0.00030136,6]
[385787337,1758040260305,-400.0,0.00030136,6]
[385787338,1758040260315,-400.0,0.00030136,6]
[385787339,1758040260324,-500.0,0.00030136,6]
[385787340,1758040260333,-249.60608086,0.00030136,6]
[385787341,1758040260342,-500.0,0.00030136,6]
[385787342,1758040260351,-500.0,0.00030136,6]
[385787343,1758040260360,-400.0,0.00030136,6]
[385787344,1758040260369,-500.0,0.00030136,6]
[385787345,1758040260379,-500.0,0.00030136,6]
[385787346,1758040260388,-539.56,0.00030136,6]
[385787347,1758040260398,-400.0,0.00030136,6]
[385787348,1758040260407,-400.0,0.00030136,6]
[385787349,1758040260416,-827.96,0.00030136,6]
[385787350,1758040260425,-400.0,0.00030136,6]
[385787351,1758040260434,-2121.09,0.00030136,6]
[385787352,1758040260444,-400.0,0.00030136,6]
[385787353,1758040260454,-707.95,0.00030136,6]
[385787354,1758040260465,-400.0,0.00030136,6]
[385787355,1758040260475,-1835.97,0.00030136,6]
[385787356,1758040260484,-400.0,0.00030136,6]
[385787357,1758040260493,-400.0,0.00030136,6]
[385787358,1758040260504,-1038.79,0.00030137,120]
[385787359,1758040260514,-3095.42236749,0.00030144,2]
[385787360,1758040260524,-3731.72551287,0.00030161,2]
[385787361,1758040260535,-500.0,0.00030173,5]
[385787362,1758040260545,-2064.68,0.000302,3]
[385787363,1758040260554,-500.0,0.00030215,120]
[385787364,1758040260565,-782.315634,0.00030215,120]
[385787365,1758040260575,-507.68204,0.00030215,120]
[385787366,1758040260584,-284.0,0.00030236,2]
[385787367,1758040260593,-539.25764648,0.0003031,2]
[385787368,1758040260602,-3731.72551287,0.00030316,2]
[385787369,1758040260612,-500.0,0.0003032,2]
[385787370,1758040260621,-1300.0,0.00030326,7]
[385787371,1758040260630,-3095.42236749,0.00030391,2]
[385787372,1758040260639,-2064.68,0.000304,3]
[385787373,1758040260648,-500.0,0.00030409,6]
[385787374,1758040260658,-500.0,0.00030409,6]
[385787375,1758040260667,-500.0,0.00030409,6]
[385787376,1758040260677,-500.0,0.00030409,6]
[385787377,1758040260688,-500.0,0.00030409,6]
[385787378,1758040260697,-500.0,0.00030409,6]
[385787379,1758040260706,-234.35835262,0.00030409,6]
[385787380,1758040260717,-500.0,0.00030409,6]
[385787381,1758040260726,-500.0,0.00030409,6]
[385787382,1758040260735,-500.0,0.00030409,6]
[385787383,1758040260745,-500.0,0.00030409,6]
[385787384,1758040260754,-500.0,0.00030409,6]
[385787385,1758040260763,-500.0,0.00030409,6]
[385787386,1758040260772,-799.76,0.00030409,6]
[385787387,1758040260781,-799.76,0.00030409,6]
[385787388,1758040260790,-799.76,0.00030409,6]
[385787389,1758040260799,-518.33,0.00030409,6]
[385787390,1758040260808,-518.33,0.00030409,6]
[385787391,1758040260817,-518.33,0.00030409,6]
[385787392,1758040260827,-500.0,0.00030409,6]
[385787393,1758040260836,-336.76620296,0.00030409,6]
[385787394,1758040260845,-500.0,0.00030409,6]
[385787395,1758040260855,-500.0,0.00030409,6]
[385787396,1758040260864,-500.0,0.00030409,6]
[385787397,1758040260873,-500.0,0.00030409,6]
[385787398,1758040260883,-378.24,0.00030409,6]
[385787399,1758040260891,-500.0,0.00030409,6]
[385787400,1758040260901,-500.0,0.00030409,6]
[385787401,1758040260910,-500.0,0.00030409,6]
[385787402,1758040260919,-797.56,0.00030409,2]
[385787403,1758040260927,-797.56,0.00030409,2]
[385787404,1758040260937,-797.56,0.00030409,2]
[385787405,1758040260946,-542.41,0.00030409,6]
[385787406,1758040260959,-542.41,0.00030409,6]
[385787407,1758040260970,-542.41,0.00030409,6]
[385787408,1758040260979,-500.0,0.00030409,6]
[385787409,1758040260988,-500.0,0.00030409,6]
[385787410,1758040260998,-500.0,0.00030409,6]
[385787411,1758040261007,-400.0,0.0003041,6]
[385787412,1758040261016,-415.29454294,0.0003041,6]
[385787413,1758040261026,-400.0,0.0003041,6]
[385787414,1758040261036,-401.20120216,0.0003041,6]
[385787415,1758040261046,-400.0,0.0003041,6]
[385787416,1758040261055,-400.0,0.0003041,6]
[385787417,1758040261064,-400.0,0.0003041,6]
[385787418,1758040261073,-400.0,0.0003041,6]
[385787419,1758040261082,-400.0,0.0003041,6]
[385787420,1758040261091,-400.0,0.0003041,6]
[385787421,1758040261101,-402.38985248,0.0003041,6]
[385787422,1758040261110,-400.0,0.0003041,6]
[385787423,1758040261120,-400.0,0.0003041,5]
[385787424,1758040261129,-400.0,0.0003041,6]
[385787425,1758040261138,-400.0,0.0003041,6]
[385787426,1758040261147,-400.0,0.0003041,6]
[385787427,1758040261156,-400.0,0.0003041,6]
[385787428,1758040261165,-400.0,0.0003041,6]
[385787429,1758040261174,-400.0,0.0003041,2]
[385787430,1758040261183,-400.0,0.0003041,3]
[385787431,1758040261192,-400.0,0.0003041,6]
[385787432,1758040261202,-400.0,0.0003041,6]
[385787433,1758040261211,-400.0,0.0003041,6]
[385787434,1758040261221,-400.0,0.0003041,6]
[385787435,1758040261230,-404.46660653,0.0003041,6]